bitfinex/quotes_SOLUSD_20240613
["timestamp","ask_amount","ask_price","bid_price","bid_amount"]
[1718304743167,0.8372869,148.68,148.67,7.4661]
[1718304743367,0.8372869,148.68,148.67,24.8872]
[1718304746506,0.8372869,148.68,148.67,32.4872]
[1718304747562,0.8372869,148.68,148.67,52.4872]
[1718304748457,0.8372869,148.68,148.67,68.5676]
[1718304753474,0.8372869,148.68,148.67,60.9676]
[1718304753796,0.8372869,148.68,148.67,68.5676]
[1718304776211,0.25848,148.75,148.73,2.4876]
[1718304777518,0.25848,148.75,148.72,2.4877]
[1718304780131,2.74588,148.75,148.72,2.4877]
[1718304780331,7.85848,148.75,148.72,2.4877]
[1718304780526,0.25848,148.75,148.72,2.4877]
[1718304780706,7.85848,148.75,148.72,2.4877]
[1718304781127,10.34578,148.75,148.72,2.4877]
[1718304781328,7.85848,148.75,148.72,2.4877]
[1718304781519,7.85848,148.75,148.7,22.3933]
[1718304782014,7.85848,148.75,148.7,29.9933]
[1718304782220,7.85848,148.75,148.72,2.4878]
[1718304784939,7.85848,148.75,148.73,2.4877]
[1718304785141,7.85848,148.75,148.72,2.4878]
[1718304786252,7.6,148.74,148.69,4.9766]
[1718304786427,10.34598,148.75,148.69,40.0417]
[1718304787131,10.34598,148.75,148.72,2.4878]
[1718304787307,7.85848,148.75,148.72,2.4878]
[1718304787508,0.25848,148.75,148.69,35.0651]
[1718304787710,8.11,148.74,148.72,2.4878]
[1718304788123,0.51,148.74,148.72,2.4878]
[1718304788330,8.11,148.74,148.72,2.4878]
[1718304788729,0.17,148.74,148.73,2.4877]
[1718304788931,0.25848,148.75,148.73,2.4877]
[1718304789140,7.6,148.74,148.73,2.4877]
[1718304789316,7.6,148.74,148.72,2.4877]
[1718304789815,7.6,148.74,148.73,2.4877]
[1718304792833,7.6,148.74,148.71,4.9761]
[1718304792834,7.6,148.74,148.72,2.4878]
[1718304793345,7.6,148.73,148.72,2.4878]
[1718304793647,7.94,148.73,148.7,2.4881]
[1718304793818,7.6,148.71,148.7,2.4881]
[1718304794020,7.77,148.71,148.7,2.4881]
[1718304797145,8.11,148.71,148.69,2.4882]
[1718304797353,7.77,148.71,148.69,2.4882]
[1718304797560,7.77,148.71,148.7,2.4882]
[1718304797857,8.11,148.71,148.69,2.4883]
[1718304798047,0.51,148.7,148.69,2.4883]
[1718304798229,8.11,148.7,148.69,2.4883]
[1718304800241,8.11,148.7,148.65,7.6]
[1718304800242,26.5694,148.7,148.66,2.4887]
[1718304800443,7.6,148.67,148.65,2.4889]
[1718304800658,7.6,148.66,148.63,2.4893]
[1718304800863,7.6,148.64,148.63,2.4893]
[1718304801145,8.11,148.64,148.62,2.4894]
[1718304801458,0.34,148.64,148.63,2.4894]
[1718304801620,0.51,148.64,148.63,2.4894]
[1718304802148,8.11,148.64,148.63,2.4894]
[1718304805242,8.11,148.64,148.62,2.4894]
[1718304806562,0.51,148.64,148.63,2.4894]
[1718304806863,8.11,148.64,148.63,2.4894]
[1718304813762,0.51,148.64,148.63,2.4894]
[1718304813948,8.11,148.64,148.63,2.4894]
[1718304814644,8.11,148.64,148.62,2.4894]
[1718304815265,0.51,148.64,148.63,2.4894]
[1718304815571,0.17,148.64,148.63,2.4894]
[1718304819358,0.17,148.64,148.55,21.90099359]
[1718304819558,7.6,148.58,148.57,2.4903]
[1718304820552,7.94,148.58,148.53,17.4368]
[1718304820754,7.6,148.56,148.55,2.4906]
[1718304821760,0.34,148.58,148.56,2.4905]
[1718304821961,8.11,148.57,148.56,2.4905]
[1718304824086,8.11,148.57,148.55,2.4906]
[1718304824375,8.11,148.57,148.53,9.9641]
[1718304824376,7.6,148.56,148.51,4.9825]
[1718304824577,7.6,148.53,148.5,4.9831]
[1718304824887,7.6,148.53,148.52,2.4912]
[1718304825055,0.17,148.55,148.54,2.4909]
[1718304825555,7.6,148.55,148.54,2.4909]
[1718304829360,7.6,148.55,148.53,2.4909]
[1718304829872,7.6,148.55,148.54,2.4909]
[1718304830379,0.17,148.56,148.55,2.4907]
[1718304830582,7.77,148.56,148.54,2.4908]
[1718304832869,7.77,148.56,148.53,2.4909]
[1718304833070,0.17,148.56,148.54,2.4908]
[1718304833258,7.6,148.55,148.54,2.4908]
[1718304834370,0.17,148.56,148.54,2.4908]
[1718304834571,7.6,148.55,148.54,2.4908]
[1718304835771,0.17,148.56,148.54,2.4908]
[1718304836083,7.6,148.55,148.54,2.4908]
[1718304836461,0.17,148.56,148.55,2.4907]
[1718304836663,7.6,148.56,148.55,2.4906]
[1718304837480,15.022,148.62,148.52,7.6]
[1718304837680,7.6,148.59,148.58,2.49]
[1718304838172,15.022,148.62,148.59,2.49]
[1718304838484,15.022,148.62,148.57,4.9807]
[1718304838485,9.1355,148.64,148.6,2.4898]
[1718304838660,4.9781,148.65,148.6,2.4899]
[1718304838980,7.6,148.61,148.59,2.4899]
[1718304839185,7.6,148.6,148.59,2.4899]
[1718304839396,9.9558,148.66,148.6,2.4897]
[1718304839680,7.6,148.61,148.6,2.4897]
[1718304840197,2.4894,148.63,148.59,2.49]
[1718304840355,7.6,148.6,148.59,2.49]
[1718304840863,2.4892,148.64,148.6,2.4897]
[1718304841067,7.6,148.61,148.6,2.4897]
[1718304842576,7.6,148.61,148.59,2.4899]
[1718304842993,7.6,148.6,148.59,2.4899]
[1718304845174,17.4225,148.66,148.58,7.4707]
[1718304845175,2.4893,148.64,148.58,7.4707]
[1718304845382,0.17,148.63,148.61,2.4896]
[1718304845586,0.17,148.64,148.59,12.4503]
[1718304845587,7.6,148.62,148.6,2.4897]
[1718304845769,7.6,148.61,148.6,2.4897]
[1718304846390,23.9512,148.67,148.6,2.4897]
[1718304846391,4.9774,148.68,148.61,4.9794]
[1718304846672,253.1,148.69,148.67,2.4886]
[1718304846967,69.41968,148.75,148.68,2.4884]
[1718304847174,7.6,148.69,148.68,2.4884]
[1718304847977,7.6,148.69,148.67,2.4886]
[1718304848178,7.6,148.68,148.67,2.4886]
[1718304848587,2.4881,148.71,148.67,2.4886]
[1718304848774,2.4881,148.71,148.68,2.4885]
[1718304848986,7.6,148.69,148.68,2.4885]
[1718304851001,7.6,148.69,148.67,2.4886]
[1718304854408,2.4878,148.73,148.68,2.4885]
[1718304854606,59.47008,148.75,148.68,2.4883]
[1718304854903,7.6,148.7,148.68,2.4883]
[1718304855089,7.6,148.71,148.69,2.4883]
[1718304856897,21.60788,148.75,148.67,17.4203]
[1718304857106,7.6,148.71,148.69,2.4882]
[1718304857283,2.4878,148.73,148.7,2.4881]
[1718304857493,8.11,148.72,148.7,2.4881]
[1718304857980,0.51,148.72,148.7,2.4881]
[1718304858384,8.11,148.72,148.7,2.4881]
[1718304858904,0.25848,148.75,148.69,7.6]
[1718304859116,7.85848,148.75,148.73,2.4876]
[1718304859311,7.85848,148.75,148.74,2.4875]
[1718304859604,7.85848,148.75,148.73,2.4876]
[1718304860028,7.85848,148.75,148.71,22.3918]
[1718304860029,7.85848,148.75,148.74,2.4875]
[1718304861503,8.02848,148.75,148.74,2.4875]
[1718304863108,8.02848,148.75,148.73,2.4876]
[1718304864009,52.77,148.74,148.69,4.9766]
[1718304864216,7.6,148.72,148.71,2.4879]
[1718304865110,7.6,148.73,148.72,2.4878]
[1718304865294,0.25848,148.75,148.73,2.4876]
[1718304865504,7.6,148.74,148.73,2.4877]
[1718304865728,0.25848,148.75,148.73,24.9751]
[1718304865912,0.25848,148.75,148.74,2.4875]
[1718304867335,45.25848,148.75,148.68,7.4654]
[1718304867620,45.34,148.74,148.72,2.4878]
[1718304867821,7.6,148.73,148.72,2.4878]
[1718304867998,8.11,148.73,148.72,2.4878]
[1718304868189,7.94,148.73,148.72,2.4878]
[1718304868394,7.77,148.73,148.72,2.4878]
[1718304868594,0.17,148.73,148.72,2.4878]
[1718304868826,7.77,148.73,148.72,2.4878]
[1718304869899,0.17,148.73,148.72,2.4878]
[1718304870217,7.77,148.73,148.72,2.4878]
[1718304873031,7.6,148.73,148.72,24.8786]
[1718304873207,0.25848,148.75,148.74,2.4875]
[1718304874434,0.25848,148.75,148.74,7.4626]
[1718304876433,0.25848,148.75,148.74,14.9252]
[1718304877141,0.25848,148.75,148.74,7.4626]
[1718304877333,7.85848,148.75,148.74,7.4626]
[1718304879145,0.25848,148.75,148.74,14.9252]
[1718304880336,8e-05,148.75,148.74,44.8754]
[1718304880539,0.8372869,148.83,148.8,2.4865]
[1718304880732,0.8372869,148.83,148.78,4.9736]
[1718304880733,0.8372869,148.83,148.81,2.4863]
[1718304880946,7.6,148.82,148.8,2.4864]
[1718304881128,7.6,148.81,148.8,2.4864]
[1718304881953,7.6,148.81,148.78,12.4342]
[1718304881954,0.8372869,148.83,148.81,2.4863]
[1718304882155,7.6,148.82,148.81,2.4863]
[1718304882456,7.77,148.82,148.81,2.4863]
[1718304882749,53.11,148.82,148.81,2.4863]
[1718304886055,53.11,148.82,148.78,12.4343]
[1718304886266,45.51,148.81,148.8,2.4865]
[1718304886453,53.11,148.81,148.79,2.4866]
[1718304888659,7.6,148.8,148.78,2.4868]
[1718304888959,8.11,148.79,148.76,4.9743]
[1718304889167,8.11,148.79,148.74,4.975]
[1718304889168,7.6,148.77,148.74,4.975]
[1718304889357,0.17,148.78,148.76,2.4872]
[1718304889673,7.6,148.77,148.76,2.4872]
[1718304889841,53.11,148.77,148.76,2.4872]
[1718304890158,53.11,148.77,148.72,7.4633]
[1718304890364,45.51,148.76,148.75,2.4873]
[1718304890549,53.11,148.76,148.75,2.4873]
[1718304892550,8.11,148.76,148.75,2.4873]
[1718304897767,10.5972,148.76,148.7,4.9762]
[1718304897970,7.6,148.74,148.7,12.4407]
[1718304898147,7.6,148.74,148.73,2.4877]
[1718304898352,7.94,148.74,148.73,2.4877]
[1718304898557,8.11,148.74,148.73,2.4877]
[1718304899081,53.11,148.74,148.72,2.4877]
[1718304899280,7.77,148.73,148.72,2.4877]
[1718304900263,8.11,148.73,148.71,2.4879]
[1718304900469,7.6,148.72,148.71,2.4879]
[1718304900667,7.77,148.72,148.71,2.4879]
[1718304900872,53.11,148.72,148.7,2.4881]
[1718304901188,0.51,148.71,148.7,2.4881]
[1718304901692,0.51,148.71,148.67,7.4661]
[1718304901896,7.6,148.68,148.6,22.0051]
[1718304902069,7.6,148.66,148.65,2.489]
[1718304902270,7.6,148.66,148.62,12.4475]
[1718304902580,7.6,148.65,148.64,2.4892]
[1718304902787,8.11,148.65,148.63,2.4893]
[1718304903002,7.6,148.65,148.64,2.4892]
[1718304903190,8.11,148.65,148.64,2.4892]
[1718304904398,0.51,148.65,148.64,2.4892]
[1718304904701,8.11,148.65,148.64,2.4892]
[1718304906978,10.09216679,148.68,148.67,2.4887]
[1718304907203,7.6,148.69,148.67,2.4887]
[1718304908383,8.11,148.68,148.67,2.4887]
[1718304908578,0.51,148.68,148.67,2.4887]
[1718304908785,8.11,148.68,148.67,2.4887]
[1718304908994,0.51,148.68,148.67,2.4887]
[1718304909178,8.11,148.68,148.67,2.4887]
[1718304910893,10.09055021,148.71,148.7,2.4882]
[1718304911198,6.3674,148.76,148.7,2.4882]
[1718304911199,17.69055021,148.74,148.71,4.9761]
[1718304911393,17.69055021,148.74,148.73,2.4877]
[1718304912100,7.6,148.74,148.73,2.4877]
[1718304912300,10.09055021,148.75,148.74,2.4875]
[1718304912602,10.09055021,148.75,148.74,2.4874]
[1718304912603,7.6,148.75,148.74,2.4874]
[1718304913495,10.09055021,148.77,148.76,2.4872]
[1718304913704,17.69055021,148.77,148.75,2.4873]
[1718304914089,10.09055021,148.77,148.76,2.4872]
[1718304914295,17.69055021,148.77,148.76,2.4872]
[1718304914496,17.69055021,148.77,148.75,2.4872]
[1718304914691,0.17,148.76,148.75,2.4872]
[1718304915904,0.34,148.76,148.75,2.4872]
[1718304916106,17.69055021,148.77,148.76,2.4872]
[1718304916309,10.0865159,148.77,148.76,2.4872]
[1718304916608,7.6,148.78,148.76,2.4872]
[1718304919089,10.0865159,148.8,148.76,24.8716]
[1718304919283,10.0865159,148.8,148.79,2.4867]
[1718304919609,7.6,148.8,148.77,2.4869]
[1718304919809,7.6,148.79,148.75,22.3861]
[1718304919994,7.6,148.79,148.77,2.4869]
[1718304920592,7.6,148.79,148.78,2.4868]
[1718304920799,7.6,148.79,148.77,2.4869]
[1718304921495,7.6,148.79,148.75,22.3861]
[1718304921496,7.6,148.79,148.78,2.4868]
[1718304922790,7.6,148.79,148.76,4.9742]
[1718304922791,52.94,148.79,148.74,4.9748]
[1718304923107,8.11,148.78,148.74,32.4373]
[1718304924091,8.11,148.78,148.77,2.487]
[1718304924720,0.51,148.78,148.77,2.487]
[1718304925217,8.1,148.78,148.77,2.487]
[1718304926491,0.51,148.78,148.77,2.487]
[1718304926994,8.1,148.78,148.77,2.487]
[1718304927195,0.51,148.78,148.77,2.487]
[1718304927512,8.1,148.78,148.77,2.487]
[1718304928219,0.51,148.78,148.77,2.487]
[1718304928520,8.1,148.78,148.77,2.487]
[1718304931299,0.51,148.78,148.77,7.4611]
[1718304931898,8.1,148.78,148.77,7.4611]
[1718304932625,8.1,148.78,148.77,2.487]
[1718304933228,0.51,148.78,148.77,2.487]
[1718304933520,8.1,148.78,148.77,2.487]
[1718304936908,0.51,148.78,148.77,2.487]
[1718304937104,8.1,148.78,148.77,2.487]
[1718304940628,10.08338083,148.79,148.78,24.8686]
[1718304940814,10.08338083,148.8,148.79,2.4867]
[1718304941014,55.08338083,148.8,148.79,2.4867]
[1718304941524,45.0,148.8,148.79,2.4867]
[1718304941915,45.17,148.8,148.79,2.4867]
[1718304942121,45.51,148.8,148.79,2.4867]
[1718304944851,45.51,148.8,148.78,2.4868]
[1718304945020,63.18338083,148.79,148.77,2.487]
[1718304945216,7.59,148.78,148.77,2.487]
[1718304945542,53.1,148.78,148.77,2.487]
[1718304945916,0.17,148.78,148.74,9.9498]
[1718304946112,45.17,148.78,148.77,2.4869]
[1718304946315,45.51,148.78,148.77,2.4869]
[1718304948343,55.59338083,148.78,148.75,2.4872]
[1718304948548,0.51,148.77,148.76,2.4872]
[1718304952045,0.51,148.77,148.76,7.4616]
[1718304952543,10.59512838,148.77,148.76,7.4616]
[1718304952744,0.51,148.77,148.76,2.4872]
[1718304952941,10.59512838,148.77,148.76,2.4872]
[1718304953444,10.59512838,148.77,148.75,2.4873]
[1718304954332,10.08512838,148.76,148.75,2.4873]
[1718304956256,0.51,148.77,148.76,2.4872]
[1718304956545,45.51,148.77,148.76,2.4872]
[1718304959323,0.51,148.77,148.76,2.4872]
[1718304960732,0.17,148.77,148.76,2.4872]
[1718304960942,45.0,148.78,148.77,2.487]
[1718304961142,45.51,148.78,148.77,2.487]
[1718304961331,19.36259521,148.82,148.79,2.4867]
[1718304961534,0.34,148.81,148.76,15.0516]
[1718304961837,0.8372869,148.83,148.78,4.9736]
[1718304962245,0.8372869,148.83,148.81,2.4862]
[1718304963631,0.8372869,148.83,148.8,2.4864]
[1718304963959,45.8372869,148.83,148.8,2.4864]
[1718304964169,8.1,148.82,148.77,42.8233]
[1718304964466,55.08226419,148.81,148.79,2.4866]
[1718304964763,10.08226419,148.8,148.79,2.4866]
[1718304965371,55.08226419,148.81,148.77,42.8233]
[1718304965559,10.08226419,148.8,148.79,2.4865]
[1718304966255,10.08226419,148.81,148.8,2.4865]
[1718304966439,10.08226419,148.82,148.81,2.4863]
[1718304967349,10.91955109,148.83,148.82,2.4862]
[1718304967757,10.91955109,148.83,148.82,7.4586]
[1718304968349,10.91955109,148.83,148.82,22.5072]
[1718304969273,0.8372869,148.83,148.82,22.5072]
[1718304970265,0.8372869,148.83,148.82,14.9172]
[1718304970571,0.8372869,148.83,148.82,2.4862]
[1718304973759,0.8372869,148.83,148.79,32.4334]
[1718304973961,0.8372869,148.83,148.81,2.4863]
[1718304974379,0.8372869,148.83,148.82,2.4862]
[1718304975456,0.8372869,148.83,148.82,7.4586]
[1718304975878,0.8372869,148.83,148.82,14.9172]
[1718304976860,0.8372869,148.83,148.82,7.4586]
[1718304978677,0.8372869,148.83,148.82,2.4862]
[1718304979683,0.8372869,148.83,148.82,7.4586]
[1718304980478,0.8372869,148.83,148.82,14.9172]
[1718304980678,0.8372869,148.83,148.82,24.862]
[1718304981063,0.8372869,148.83,148.82,44.862]
[1718304981258,0.8372869,148.83,148.82,52.452]
[1718304981466,0.8372869,148.83,148.82,67.859]
[1718304981978,0.8372869,148.83,148.82,60.269]
[1718304982177,0.8372869,148.83,148.82,74.1654]
[1718304983084,8.69e-05,148.83,148.82,81.7554]
[1718304983276,8.69e-05,148.83,148.82,74.1654]
[1718304983880,8.69e-05,148.83,148.82,81.7554]
[1718304984183,8.69e-05,148.83,148.82,104.5254]
[1718304984384,8.69e-05,148.83,148.82,74.1654]
[1718304986173,8.69e-05,148.83,148.82,66.5754]
[1718304986379,8.69e-05,148.83,148.82,74.1654]
[1718304988197,8.69e-05,148.83,148.82,60.269]
[1718304988365,8.69e-05,148.83,148.82,44.862]
[1718304988567,8.69e-05,148.83,148.82,2.4862]
[1718304989667,8.69e-05,148.83,148.82,7.4586]
[1718304990193,8.69e-05,148.83,148.82,22.4862]
[1718304990395,8.69e-05,148.83,148.82,2.4862]
[1718304991288,8.69e-05,148.83,148.82,7.4586]
[1718304993274,8.69e-05,148.83,148.82,14.9172]
[1718304993692,8.69e-05,148.83,148.82,24.862]
[1718304994190,8.69e-05,148.83,148.82,44.862]
[1718304994785,8.69e-05,148.83,148.82,27.4586]
[1718304996675,8.69e-05,148.83,148.82,34.9172]
[1718304998181,8.69e-05,148.83,148.82,44.862]
[1718305002703,8.69e-05,148.83,148.82,22.4862]
[1718305003299,8.69e-05,148.83,148.82,27.4586]
[1718305003872,8.69e-05,148.83,148.82,34.9172]
[1718305004278,8.69e-05,148.83,148.82,44.862]
[1718305005380,8.69e-05,148.83,148.82,52.452]
[1718305007290,8.69e-05,148.83,148.82,44.862]
[1718305008211,8.69e-05,148.83,148.82,52.452]
[1718305017710,8.69e-05,148.83,148.82,44.862]
[1718305017905,8.69e-05,148.83,148.82,52.452]
[1718305018106,8.69e-05,148.83,148.82,44.862]
[1718305018307,8.69e-05,148.83,148.82,52.452]
[1718305020733,8.69e-05,148.83,148.82,27.4586]
[1718305021146,10.07873382,148.83,148.82,27.4586]
[1718305021634,8.69e-05,148.83,148.82,27.4586]
[1718305022609,8.69e-05,148.83,148.82,34.9172]
[1718305023310,10.07909129,148.83,148.82,44.862]
[1718305024136,8.69e-05,148.83,148.82,44.862]
[1718305024543,7.5900869,148.83,148.79,7.46]
[1718305024712,7.5900869,148.83,148.82,2.4862]
[1718305025035,8.1000869,148.83,148.81,2.4863]
[1718305025336,8.1000869,148.83,148.82,2.4862]
[1718305027137,8.69e-05,148.83,148.82,14.9172]
[1718305027630,8.69e-05,148.83,148.82,24.862]
[1718305028425,8.69e-05,148.83,148.82,7.4586]
[1718305028649,8.69e-05,148.83,148.82,2.4862]
[1718305030649,8.69e-05,148.83,148.8,12.4327]
[1718305030650,8.69e-05,148.83,148.81,2.4863]
[1718305030866,7.5900869,148.83,148.81,2.4863]
[1718305032839,7.5900869,148.83,148.82,2.4862]
[1718305033038,7.7600869,148.83,148.82,2.4862]
[1718305035451,7.7600869,148.83,148.81,2.4862]
[1718305035662,7.7600869,148.83,148.82,2.4862]
[1718305036364,0.1700869,148.83,148.82,2.4862]
[1718305039778,0.1700869,148.83,148.81,2.4862]
[1718305039961,0.1700869,148.83,148.77,12.4349]
[1718305039962,7.93,148.82,148.77,12.4349]
[1718305040146,10.08152463,148.79,148.78,22.4868]
[1718305040345,7.93,148.82,148.79,2.4867]
[1718305040563,7.93,148.82,148.76,4.9743]
[1718305040564,0.17,148.81,148.76,4.9743]
[1718305040770,10.08225485,148.78,148.77,2.4869]
[1718305040950,7.59,148.8,148.77,2.4869]
[1718305041159,0.34,148.79,148.78,2.4868]
[1718305041371,0.17,148.79,148.78,2.4868]
[1718305041665,7.59,148.8,148.78,2.4868]
[1718305042370,7.59,148.8,148.77,2.4869]
[1718305042573,10.0825448,148.78,148.77,2.4869]
[1718305043649,0.51,148.81,148.76,2.4871]
[1718305043650,7.59,148.79,148.76,2.4871]
[1718305043872,10.08334135,148.77,148.76,2.4871]
[1718305045374,10.08334135,148.78,148.77,2.487]
[1718305050575,10.08334135,148.79,148.78,2.4868]
[1718305050770,55.59334135,148.79,148.77,2.4869]
[1718305050981,10.42334135,148.78,148.74,4.9748]
[1718305051165,10.08448844,148.77,148.76,2.4872]
[1718305051346,10.59448844,148.77,148.76,2.4872]
[1718305051549,0.51,148.77,148.76,2.4872]
[1718305051774,10.59448844,148.77,148.76,2.4872]
[1718305052182,0.51,148.77,148.76,2.4872]
[1718305052858,0.51,148.77,148.75,2.4873]
[1718305053060,10.59448844,148.77,148.75,2.4873]
[1718305053461,0.34,148.76,148.75,2.4873]
[1718305058491,10.08448844,148.78,148.77,24.8704]
[1718305058674,10.08448844,148.81,148.8,2.4865]
[1718305058871,10.08211482,148.82,148.81,2.4863]
[1718305059185,10.08220172,148.83,148.81,2.4863]
[1718305059969,10.08220172,148.83,148.82,2.4862]
[1718305060390,10.59220172,148.83,148.82,2.4862]
[1718305060566,10.25220172,148.83,148.82,2.4862]
[1718305060766,10.08220172,148.83,148.82,2.4862]
[1718305060960,8.69e-05,148.83,148.82,2.4862]
[1718305062379,0.1700869,148.83,148.82,2.4862]
[1718305062585,0.3400869,148.83,148.82,2.4862]
[1718305064079,8.69e-05,148.83,148.82,7.4586]
[1718305065177,8.69e-05,148.83,148.82,2.4862]
[1718305066975,8.69e-05,148.83,148.8,15.0496]
[1718305066976,7.5900869,148.83,148.8,2.4864]
[1718305067182,7.5900869,148.83,148.81,2.4863]
[1718305067484,7.59,148.82,148.79,4.9731]
[1718305067803,7.59,148.82,148.75,50.97005619]
[1718305067804,7.93,148.82,148.8,2.4865]
[1718305068801,7.93,148.82,148.81,2.4863]
[1718305068992,10.08220172,148.83,148.82,2.4862]
[1718305068993,8.69e-05,148.83,148.82,2.4862]
[1718305069299,8.69e-05,148.83,148.82,44.862]
[1718305070779,8.69e-05,148.83,148.82,2.4862]
[1718305070980,8.1000869,148.83,148.82,2.4862]
[1718305073505,8.1000869,148.83,148.8,4.9727]
[1718305073806,8.1000869,148.83,148.8,24.9727]
[1718305074386,8.1000869,148.83,148.82,2.4862]
[1718305075094,8.1000869,148.83,148.78,4.9734]
[1718305075296,17.67211482,148.81,148.79,2.4866]
[1718305075505,7.59,148.81,148.79,2.4866]
[1718305076008,7.59,148.81,148.8,2.4865]
[1718305076201,8.1,148.81,148.8,2.4865]
[1718305076402,8.1,148.81,148.78,4.9734]
[1718305076403,8.1,148.81,148.79,2.4867]
[1718305076705,8.1,148.8,148.79,2.4867]
[1718305077405,0.51,148.8,148.79,2.4867]
[1718305077611,8.1,148.8,148.79,2.4867]
[1718305079385,8.1,148.8,148.78,2.4867]
[1718305079601,8.1,148.8,148.79,2.4867]
[1718305080003,8.1,148.8,148.77,2.4869]
[1718305080198,7.59,148.79,148.78,2.4868]
[1718305080511,8.1,148.79,148.74,22.3873]
[1718305080696,0.51,148.78,148.77,2.487]
[1718305081017,8.1,148.78,148.77,2.487]
[1718305081492,53.1,148.78,148.77,2.487]
[1718305082112,63.18211482,148.78,148.76,2.4872]
[1718305082308,7.59,148.77,148.76,2.4872]
[1718305082505,8.1,148.77,148.76,2.4872]
[1718305083415,0.34,148.77,148.76,7.4616]
[1718305083790,0.34,148.77,148.76,2.4872]
[1718305085718,0.51,148.77,148.75,2.4872]
[1718305086016,0.51,148.76,148.75,2.4872]
[1718305096243,8.1,148.76,148.74,2.4875]
[1718305096421,52.59,148.75,148.74,2.4875]
[1718305096754,53.1,148.75,148.73,2.4876]
[1718305096925,7.76,148.74,148.73,2.4876]
[1718305099444,0.17,148.74,148.73,2.4876]
[1718305100516,0.51,148.74,148.73,2.4876]
[1718305108343,0.51,148.74,148.73,7.463]
[1718305109951,10.08649041,148.79,148.78,2.4868]
[1718305110361,7.59,148.8,148.79,2.4867]
[1718305110661,7.59,148.8,148.78,2.4868]
[1718305110826,7.59,148.8,148.77,4.974]
[1718305111025,7.59,148.81,148.78,2.4868]
[1718305111522,55.5936882,148.8,148.78,2.4868]
[1718305113327,55.5936882,148.8,148.79,2.4867]
[1718305113328,10.0836882,148.8,148.79,2.4867]
[1718305113558,10.0836882,148.81,148.8,2.4865]
[1718305114061,10.0837751,148.83,148.81,2.4863]
[1718305114227,17.6737751,148.83,148.81,2.4863]
[1718305114665,17.6737751,148.83,148.8,2.4864]
[1718305114866,55.4236882,148.82,148.8,2.4864]
[1718305115042,55.4236882,148.82,148.79,20.0]
[1718305115231,45.34,148.82,148.81,2.4863]
[1718305115641,45.51,148.82,148.79,20.0]
[1718305115835,7.59,148.8,148.78,2.4868]
[1718305116141,17.6736882,148.8,148.78,2.4868]
[1718305116348,10.0836882,148.8,148.79,2.4867]
[1718305116551,10.4236882,148.8,148.78,2.4868]
[1718305116754,10.0836882,148.8,148.79,2.4867]
[1718305116942,10.0824633,148.81,148.8,4.9731]
[1718305117142,10.5924633,148.82,148.8,24.9731]
[1718305117349,10.5924633,148.82,148.81,2.4863]
[1718305117854,10.59160296,148.82,148.81,2.4863]
[1718305118951,10.08168986,148.83,148.82,7.4586]
[1718305119152,10.08168986,148.83,148.82,14.9172]
[1718305119353,10.08168986,148.83,148.82,7.4586]
[1718305119964,8.69e-05,148.83,148.82,7.4586]
[1718305120676,8.69e-05,148.83,148.82,2.4862]
[1718305121042,10.08168986,148.83,148.82,2.4862]
[1718305121245,55.59168986,148.83,148.82,2.4862]
[1718305121656,10.08168986,148.83,148.82,2.4862]
[1718305122372,8.69e-05,148.83,148.82,2.4862]